bitfinex-derivatives/quotes_BTCF0:USTF0_20210104
["timestamp","ask_amount","ask_price","bid_price","bid_amount"]
[1609801431490,4.1719,31281.0,31271.0,2.11142252]
[1609801431890,4.1719,31281.0,31270.0,2.1129023]
[1609801432290,0.13632608,31271.0,31270.0,2.1129023]
[1609801434491,0.11071,31281.0,31270.0,2.1129023]
[1609801434891,0.13632608,31271.0,31270.0,2.1129023]
[1609801435391,0.11071,31281.0,31270.0,2.1129023]
[1609801436394,0.11071,31281.0,31260.0,5.3335]
[1609801436893,0.13632608,31261.0,31260.0,5.3335]
[1609801437093,0.13632608,31261.0,31258.0,0.16121]
[1609801438397,4.0303,31272.0,31258.0,0.16121]
[1609801438996,0.13632608,31259.0,31258.0,0.16121]
[1609801439696,4.0303,31272.0,31258.0,0.16121]
[1609801439897,4.0303,31272.0,31245.0,4.987]
[1609801440900,0.13632608,31257.0,31254.0,0.13632608]
[1609801441902,0.13632608,31257.0,31245.0,4.987]
[1609801442302,0.13632608,31257.0,31245.0,0.2732]
[1609801442601,4.8552,31255.0,31245.0,0.2732]
[1609801443003,0.13632608,31250.0,31248.0,0.13632608]
[1609801444503,0.13632608,31250.0,31245.0,0.2732]
[1609801444905,0.13632608,31250.0,31246.0,0.13632608]
[1609801445104,0.13632608,31250.0,31246.0,0.25999608]
[1609801449009,0.13632608,31250.0,31246.0,0.12367]
[1609801449208,0.6176,31247.0,31246.0,0.12367]
[1609801450310,0.6176,31247.0,31238.0,2.11997052]
[1609801451011,0.13632608,31239.0,31238.0,2.11997052]
[1609801451411,0.13632608,31239.0,31236.0,2.12042281]
[1609801452911,0.13632608,31239.0,31238.0,4.908]
[1609801453111,0.13632608,31239.0,31238.0,5.02921]
[1609801456113,0.13632608,31239.0,31238.0,0.12121]
[1609801456314,3.93902608,31239.0,31238.0,0.12121]
[1609801457115,3.93902608,31239.0,31231.0,0.1596]
[1609801457916,0.13632608,31239.0,31231.0,0.1596]
[1609801458522,0.26371608,31239.0,31228.0,6.6159557]
[1609801459219,0.13632608,31229.0,31228.0,6.6159557]
[1609801459418,0.12739,31239.0,31228.0,6.6159557]
[1609801460721,0.48056474,31235.0,31228.0,6.6159557]
[1609801460925,0.48056474,31235.0,31228.0,2.1206557]
[1609801461124,0.13632608,31230.0,31228.0,2.1206557]
[1609801461324,0.13632608,31230.0,31227.0,0.13632608]
[1609801461523,0.13632608,31230.0,31224.0,0.14341]
[1609801463121,0.12739,31239.0,31224.0,0.27973608]
[1609801463122,0.13632608,31225.0,31224.0,0.27973608]
[1609801465025,0.12739,31239.0,31224.0,0.27973608]
[1609801465225,0.13632608,31229.0,31224.0,0.27973608]
[1609801465427,0.09931,31248.0,31224.0,0.14341]
[1609801465825,0.295,31259.0,31223.0,4.8649]
[1609801467327,0.295,31259.0,31217.0,0.29167]
[1609801467527,3.9941,31241.0,31218.0,2.11247483]
[1609801468928,3.9941,31241.0,31219.0,2.11251565]
[1609801469127,0.11641,31253.0,31219.0,2.11251565]
[1609801469329,0.11641,31253.0,31224.0,3.9169]
[1609801469527,0.13632608,31248.0,31242.0,0.13632608]
[1609801471327,0.13632608,31248.0,31237.0,4.9973]
[1609801471528,0.11641,31253.0,31242.0,0.13632608]
[1609801471730,0.11641,31253.0,31242.0,0.25277608]
[1609801472435,3.8965,31258.0,31242.0,0.25277608]
[1609801473730,0.13632608,31244.0,31242.0,0.25277608]
[1609801475335,4.8887,31249.0,31242.0,0.11645]
[1609801475936,0.13632608,31243.0,31242.0,0.25277608]
[1609801477741,0.13632608,31243.0,31242.0,0.11645]
[1609801477944,0.67092608,31243.0,31230.0,3.6412]
[1609801478142,0.13632608,31243.0,31226.0,2.11420641]
[1609801478342,5.1168,31236.0,31226.0,2.11420641]
[1609801478542,5.1168,31236.0,31227.0,2.11446891]
[1609801479343,5.1168,31236.0,31224.0,0.1188]
[1609801479544,5.1168,31236.0,31219.0,2.11435545]
[1609801479943,5.1168,31236.0,31224.0,0.13632608]
[1609801480143,5.1168,31236.0,31224.0,0.12883]
[1609801481844,0.13632608,31225.0,31224.0,0.12883]
[1609801482245,4.82562608,31225.0,31224.0,0.12883]
[1609801483346,0.13632608,31225.0,31224.0,0.12883]
[1609801484147,5.46164,31240.0,31224.0,0.12883]
[1609801484745,5.46164,31240.0,31219.0,4.0595]
[1609801485347,0.11904,31240.0,31217.0,0.11457]
[1609801485548,3.8911,31220.0,31203.0,2.11653235]
[1609801485747,0.14304,31232.0,31203.0,2.11653235]
[1609801485948,4.5492,31204.0,31198.0,2.11480314]
[1609801486149,0.14304,31232.0,31198.0,2.11480314]
[1609801486351,4.4207,31207.0,31200.0,0.13632608]
[1609801486549,4.4207,31207.0,31198.0,2.27237314]
[1609801486749,0.14337,31225.0,31198.0,2.27237314]
[1609801487150,3.9518,31204.0,31198.0,2.27237314]
[1609801487552,3.9518,31204.0,31198.0,0.15757]
[1609801488251,0.13632608,31199.0,31198.0,0.15757]
[1609801488752,3.9518,31204.0,31198.0,0.15757]
[1609801489651,0.14337,31225.0,31198.0,0.15757]
[1609801489851,4.9889,31223.0,31198.0,0.15757]
[1609801490252,0.14337,31225.0,31201.0,0.13632608]
[1609801490452,0.14337,31225.0,31198.0,0.15757]
[1609801490652,4.906,31207.0,31198.0,0.15757]
[1609801491556,4.906,31207.0,31186.0,2.11911525]
[1609801491955,5.38699172,31207.0,31186.0,2.11911525]
[1609801492357,0.13632608,31187.0,31186.0,2.11911525]
[1609801493258,0.13632608,31187.0,31185.0,0.13632608]
[1609801494460,4.8496,31187.0,31185.0,0.13632608]
[1609801495574,0.00403742,31223.0,31185.0,0.13632608]
[1609801495769,0.00403742,31223.0,31196.0,5.0673]
[1609801495979,0.00403742,31223.0,31196.0,5.18022]
[1609801496369,0.13632608,31217.0,31212.0,0.13632608]
[1609801496574,0.23192733,31196.0,31185.0,0.15278]
[1609801496784,0.23192733,31196.0,31195.0,4.4776]
[1609801496975,0.00403742,31223.0,31195.0,4.62722]
[1609801497363,0.00403742,31223.0,31195.0,0.14962]
[1609801497563,0.00403469,31228.0,31195.0,0.14962]
[1609801497779,0.00403469,31228.0,31222.0,4.1016]
[1609801497964,0.00403469,31228.0,31222.0,4.25445]
[1609801498165,0.00403469,31228.0,31227.0,3.5805]
[1609801498364,0.00403469,31228.0,31227.0,3.71682608]
[1609801498565,0.0138083,31258.0,31227.0,3.71682608]
[1609801499168,0.8440321,31264.0,31227.0,3.71682608]
[1609801499169,0.00403013,31274.0,31227.0,2.24734664]
[1609801499367,0.00403013,31274.0,31255.0,4.21899]
[1609801500367,0.00403013,31274.0,31273.0,0.13632608]
[1609801500568,0.01381247,31280.0,31273.0,5.55876608]
[1609801501166,0.01381247,31280.0,31273.0,0.27306608]
[1609801501368,0.01381247,31280.0,31273.0,0.13674]
[1609801501567,0.01381731,31295.0,31273.0,0.13674]
[1609801502466,0.13632608,31274.0,31273.0,0.13674]
[1609801503568,0.13632608,31274.0,31267.0,4.8215]
[1609801504471,0.13632608,31268.0,31267.0,4.8215]
[1609801506272,0.13632608,31268.0,31264.0,0.13632608]
[1609801506474,0.13632608,31268.0,31257.0,4.6898]
[1609801508373,0.13632608,31268.0,31265.0,0.13632608]
[1609801508773,0.10424,31280.0,31265.0,0.13632608]
[1609801508973,0.00402929,31286.0,31268.0,5.2567]
[1609801509578,0.00402894,31282.0,31268.0,5.2567]
[1609801510076,0.13586,31288.0,31268.0,5.2567]
[1609801510275,0.0040285,31291.0,31268.0,5.2567]
[1609801510476,0.0040285,31291.0,31276.0,0.13632608]
[1609801510677,0.0040285,31291.0,31268.0,5.2567]
[1609801510876,0.1575785,31291.0,31273.0,0.10335]
[1609801511777,0.15355,31291.0,31273.0,0.10335]
[1609801512376,0.13632608,31274.0,31273.0,0.10335]
[1609801514479,0.16735186,31291.0,31273.0,0.10335]
[1609801515082,0.16735186,31291.0,31273.0,0.75295]
[1609801515281,0.15355,31291.0,31273.0,0.75295]
[1609801515681,0.13632608,31274.0,31273.0,0.75295]
[1609801516283,0.13632608,31274.0,31273.0,0.10335]
[1609801516483,0.13632608,31274.0,31264.0,0.12894]
[1609801516686,0.13632608,31274.0,31257.0,5.1299]
[1609801517687,0.13632608,31258.0,31257.0,5.1299]
[1609801518888,0.13632608,31258.0,31255.0,0.14679]
[1609801519086,0.13632608,31258.0,31250.0,0.13632608]
[1609801519586,5.1302,31276.0,31250.0,0.13632608]
[1609801519791,0.1209,31284.0,31258.0,0.13632608]
[1609801519990,0.1209,31284.0,31258.0,0.29190608]
[1609801520189,0.1209,31284.0,31258.0,0.15558]
[1609801520389,0.271,31287.0,31258.0,0.15558]
[1609801521687,0.13632608,31268.0,31267.0,0.13632608]
[1609801522988,0.13632608,31268.0,31258.0,0.15558]
[1609801523690,0.13632608,31264.0,31259.0,0.13632608]
[1609801524792,0.13632608,31264.0,31258.0,0.15558]
[1609801525194,0.13632608,31264.0,31250.0,4.5792]
[1609801525594,4.8331,31276.0,31250.0,4.5792]
[1609801525793,4.8331,31276.0,31250.0,4.67692]
[1609801526193,0.13632608,31251.0,31250.0,4.67692]
[1609801531600,0.13632608,31251.0,31222.0,0.15285]
[1609801531800,0.13632608,31251.0,31221.0,3.7111]
[1609801532199,5.2578,31255.0,31230.0,0.25591608]
[1609801532800,5.2578,31255.0,31230.0,0.11959]
[1609801534201,0.13632608,31231.0,31230.0,0.11959]
[1609801534602,0.13632608,31231.0,31221.0,3.84742608]
[1609801534802,0.13632608,31231.0,31221.0,0.13632608]
[1609801535402,4.8112,31242.0,31216.0,3.6565]
[1609801535804,4.8112,31242.0,31216.0,3.78774]
[1609801536205,0.13632608,31217.0,31216.0,3.78774]
[1609801536405,0.13632608,31217.0,31216.0,0.13124]
[1609801538108,0.13632608,31217.0,31216.0,0.26756608]
[1609801539507,4.7459,31247.0,31216.0,4.88466608]
[1609801540109,4.7459,31247.0,31223.0,0.13632608]
[1609801540310,4.7459,31247.0,31224.0,0.6797]
[1609801540511,4.7459,31247.0,31224.0,0.83733]
[1609801542115,0.13632608,31225.0,31224.0,0.83733]
[1609801542616,0.13632608,31225.0,31224.0,0.15763]
[1609801545017,0.13632608,31225.0,31214.0,0.13632608]
[1609801545218,4.27412608,31225.0,31206.0,5.2708]
[1609801546217,0.13632608,31207.0,31206.0,5.2708]
[1609801546419,0.13632608,31207.0,31192.0,0.13632608]
[1609801546619,0.13632608,31207.0,31194.0,4.8844]
[1609801547019,0.13632608,31207.0,31194.0,5.02631]
[1609801547421,0.13632608,31207.0,31194.0,0.14191]
[1609801547622,0.13632608,31207.0,31199.0,4.6504]
[1609801548124,0.13632608,31207.0,31206.0,0.13632608]
[1609801548527,0.13632608,31207.0,31206.0,0.26455608]
[1609801548728,0.2882,31226.0,31206.0,0.12823]
[1609801550131,0.13632608,31207.0,31206.0,0.12823]
[1609801551034,0.2882,31226.0,31206.0,0.12823]
[1609801551433,0.2882,31226.0,31206.0,0.67053]
[1609801552133,0.13632608,31207.0,31206.0,0.67053]
[1609801557937,0.13632608,31207.0,31206.0,0.12823]
[1609801558137,0.13632608,31207.0,31196.0,4.1045]
[1609801558337,0.13632608,31197.0,31196.0,4.1045]
[1609801558540,3.6924,31217.0,31196.0,4.1045]
[1609801560239,0.13632608,31197.0,31196.0,4.1045]
[1609801560638,0.13632608,31197.0,31194.0,0.27823608]
[1609801561039,0.2882,31226.0,31194.0,0.27823608]
[1609801561241,4.0591,31209.0,31194.0,0.27823608]
[1609801562240,4.0591,31209.0,31198.0,0.13632608]
[1609801562439,4.0946,31221.0,31198.0,0.13632608]
[1609801562639,4.0946,31221.0,31194.0,5.23501]
[1609801564244,4.0946,31221.0,31195.0,0.13632608]
[1609801564245,0.13632608,31196.0,31195.0,0.13632608]
[1609801565845,0.13632608,31196.0,31194.0,0.14191]
[1609801566244,0.13632608,31196.0,31189.0,0.13632608]
[1609801568146,4.3456,31210.0,31188.0,5.2519]
[1609801568348,0.13632608,31199.0,31190.0,0.13632608]
[1609801570249,0.13632608,31192.0,31190.0,0.13632608]
[1609801570450,0.13632608,31192.0,31188.0,5.2519]
[1609801570650,4.3456,31210.0,31188.0,5.2519]
[1609801570952,4.3456,31210.0,31188.0,5.3824]
[1609801572054,0.2882,31226.0,31188.0,0.1305]
[1609801572253,0.13632608,31204.0,31201.0,0.13632608]
[1609801572652,0.2882,31226.0,31203.0,5.3691]
[1609801572852,0.2882,31226.0,31203.0,5.47876]
[1609801574054,0.2882,31226.0,31203.0,0.10966]
[1609801574255,0.2882,31226.0,31210.0,3.6435]
[1609801574453,0.2882,31226.0,31210.0,3.76022]
[1609801574855,0.14723,31234.0,31210.0,3.76022]
[1609801575054,0.01380381,31239.0,31210.0,3.76022]
[1609801575555,0.01380381,31239.0,31210.0,0.11672]
[1609801575756,1.15251747,31240.0,31210.0,0.11672]
[1609801575757,0.28452568,31240.0,31210.0,0.11672]
[1609801575956,0.28452568,31240.0,31221.0,4.7161]
[1609801576157,0.28452568,31240.0,31221.0,4.83938]
[1609801576559,0.13632608,31230.0,31229.0,0.13632608]
[1609801576758,0.14699,31241.0,31229.0,0.13632608]
[1609801576958,0.14699,31241.0,31229.0,4.16072608]
[1609801577159,0.00403309,31250.0,31229.0,4.16072608]
[1609801577360,0.00403309,31250.0,31230.0,4.5008]
[1609801577559,0.00403231,31254.0,31230.0,4.5008]
[1609801578459,0.13632608,31231.0,31230.0,4.5008]
[1609801580163,0.15656,31246.0,31230.0,4.5008]
[1609801581365,0.13632608,31231.0,31230.0,4.5008]
[1609801589976,0.13632608,31231.0,31228.0,0.14071]
[1609801590175,5.1688,31230.0,31221.0,0.12328]
[1609801590375,5.1688,31230.0,31214.0,7.11111349]
[1609801591381,0.13632608,31215.0,31214.0,7.11111349]
[1609801592581,0.09992,31231.0,31214.0,7.11111349]
[1609801592782,0.09992,31231.0,31208.0,2.64746929]
[1609801592783,0.00406276,31236.0,31208.0,0.13632608]
[1609801592982,0.00406276,31236.0,31221.0,4.304]
[1609801593181,0.00406276,31236.0,31221.0,4.41744]
[1609801593381,0.13632608,31224.0,31223.0,0.13632608]
[1609801597689,0.01394343,31249.0,31223.0,0.13632608]
[1609801598397,0.00406686,31249.0,31223.0,0.13632608]
[1609801599091,0.0139409,31249.0,31223.0,0.13632608]
[1609801599391,0.13632608,31225.0,31223.0,0.13632608]
[1609801602692,0.13632608,31225.0,31221.0,0.11344]
[1609801603092,0.13632608,31225.0,31219.0,3.6287]
[1609801603394,5.2717,31238.0,31220.0,0.13632608]
[1609801603895,5.2717,31238.0,31220.0,0.23323608]
[1609801604997,5.2717,31238.0,31220.0,0.09691]
[1609801605395,0.13632608,31221.0,31220.0,0.09691]
[1609801606195,3.8256,31229.0,31220.0,0.09691]
[1609801607396,0.13632608,31221.0,31220.0,0.09691]
[1609801608298,5.45872608,31221.0,31220.0,0.09691]
[1609801608698,5.45872608,31221.0,31207.0,2.12970922]
[1609801609503,0.13632608,31208.0,31206.0,6.65168377]
[1609801609901,5.3224,31221.0,31206.0,6.51535769]
[1609801610102,5.3224,31221.0,31206.0,4.3855]
[1609801611506,5.3224,31221.0,31208.0,0.13632608]
[1609801612811,0.00406609,31235.0,31208.0,0.13632608]
[1609801613010,0.00406609,31235.0,31214.0,3.5932]
[1609801613314,0.00406609,31235.0,31214.0,3.70046]
[1609801613513,0.13632608,31219.0,31215.0,0.13632608]
[1609801613913,0.12504,31236.0,31214.0,3.70046]
[1609801614213,0.01394034,31237.0,31214.0,3.70046]
[1609801614415,0.01393972,31241.0,31214.0,0.10726]
[1609801614615,0.01393972,31241.0,31224.0,5.3722]
[1609801615517,0.13632608,31225.0,31224.0,5.3722]
[1609801617017,0.13632608,31225.0,31221.0,0.13632608]
[1609801621722,4.6566,31228.0,31214.0,0.10726]
[1609801621920,4.6566,31228.0,31213.0,5.0749]
[1609801623424,4.6566,31228.0,31227.0,0.13632608]
[1609801623627,4.6566,31228.0,31227.0,0.29191608]
[1609801624925,0.13632608,31229.0,31227.0,0.29191608]
[1609801625928,0.13632608,31229.0,31227.0,0.15559]
[1609801626528,0.13632608,31229.0,31227.0,3.99239]
[1609801627429,0.13632608,31229.0,31228.0,0.13632608]
[1609801628630,4.37352608,31229.0,31228.0,0.13632608]
[1609801629330,0.13632608,31229.0,31228.0,0.13632608]
[1609801630631,0.15656,31246.0,31228.0,0.13632608]
[1609801631032,0.00406762,31247.0,31231.0,3.9775]
[1609801631233,0.0139663,31249.0,31231.0,3.9775]
[1609801631435,0.13632608,31247.0,31243.0,0.13632608]
[1609801634638,5.1056,31245.0,31231.0,6.10333655]
[1609801634838,0.13632608,31247.0,31233.0,2.1356927]
[1609801635038,3.9977,31238.0,31233.0,2.1356927]
[1609801635945,0.13632608,31234.0,31233.0,2.1356927]
[1609801636941,0.13632608,31234.0,31231.0,0.13632608]
[1609801642147,0.13632608,31234.0,31231.0,4.25112608]
[1609801642546,0.13557,31247.0,31231.0,4.25112608]
[1609801642747,0.00407792,31248.0,31231.0,4.25112608]
[1609801643447,0.00407792,31248.0,31231.0,4.1148]
[1609801643650,0.00407792,31248.0,31227.0,0.15559]
[1609801643851,4.039,31242.0,31224.0,5.73165348]
[1609801644051,4.039,31242.0,31240.0,0.13632608]
[1609801644453,0.10210792,31248.0,31240.0,0.13632608]
[1609801644852,0.09803,31248.0,31240.0,0.13632608]
[1609801645552,0.09803,31248.0,31233.0,4.1929]
[1609801645954,0.13632608,31240.0,31237.0,0.13632608]
[1609801646654,0.13632608,31240.0,31237.0,0.67462608]
[1609801647156,0.13632608,31240.0,31237.0,0.13632608]
[1609801647354,0.13632608,31240.0,31239.0,4.7276]
[1609801650855,0.09803,31248.0,31231.0,0.13383]
[1609801651055,4.76743,31248.0,31231.0,3.72953]
[1609801651258,4.6694,31248.0,31231.0,3.5957]
[1609801651455,4.6694,31248.0,31231.0,3.72959]
[1609801652056,0.13632608,31236.0,31235.0,0.13632608]
[1609801652258,0.13632608,31236.0,31235.0,0.67522608]
[1609801653058,4.6694,31248.0,31235.0,0.5389]
[1609801653956,0.13632608,31243.0,31241.0,0.13632608]
[1609801657061,0.13632608,31243.0,31238.0,3.5858]
[1609801659966,5.1263,31255.0,31239.0,0.13632608]
[1609801661569,0.00407275,31256.0,31239.0,0.13632608]
[1609801661766,0.00407275,31256.0,31246.0,4.2812]
[1609801661967,0.00407275,31256.0,31247.0,0.13632608]
[1609801663268,0.0098845,31257.0,31247.0,0.13632608]
[1609801663468,0.12376902,31258.0,31247.0,0.13632608]
[1609801663867,0.1197,31258.0,31247.0,0.13632608]
[1609801664067,0.13632608,31248.0,31247.0,0.13632608]
[1609801664969,0.13632608,31248.0,31231.0,0.13389]
[1609801664970,0.13632608,31248.0,31242.0,4.2062]
[1609801666072,0.13632608,31243.0,31242.0,4.2062]
[1609801668071,0.1138,31252.0,31242.0,4.34252608]
[1609801668271,4.4763,31256.0,31242.0,4.34252608]
[1609801670074,4.4763,31256.0,31247.0,0.13632608]
[1609801670274,0.60059779,31261.0,31247.0,0.13632608]
[1609801670275,0.01394504,31261.0,31247.0,0.13632608]
[1609801670474,0.01394504,31261.0,31249.0,4.8793]
[1609801672080,0.13632608,31250.0,31249.0,4.8793]
[1609801677786,0.13632608,31250.0,31246.0,0.13632608]
[1609801677987,4.1855,31248.0,31246.0,0.13632608]
[1609801679188,4.1855,31248.0,31240.0,0.1164]
[1609801679389,4.1855,31248.0,31238.0,3.7532]
[1609801679588,0.13632608,31250.0,31235.0,2.13179682]
[1609801679789,4.7914,31244.0,31232.0,2.13191138]
[1609801680190,0.13632608,31235.0,31232.0,2.26823746]
[1609801681590,4.7914,31244.0,31232.0,2.13191138]
[1609801681790,0.00407001,31259.0,31232.0,2.13191138]
[1609801682191,0.00407001,31259.0,31237.0,3.6209]
[1609801682592,0.01395623,31259.0,31237.0,3.6209]
[1609801684193,0.13632608,31238.0,31237.0,3.6209]
[1609801684393,0.13632608,31238.0,31236.0,0.13632608]
[1609801684593,0.13632608,31238.0,31236.0,3.81762608]
[1609801688900,0.13632608,31238.0,31236.0,0.13632608]
[1609801690500,0.13632608,31238.0,31237.0,4.0936]
[1609801693303,0.13632608,31238.0,31236.0,0.13632608]
[1609801695905,3.86072608,31238.0,31236.0,0.13632608]
[1609801697707,0.13632608,31238.0,31236.0,0.13632608]
[1609801700709,5.07162608,31238.0,31236.0,0.13632608]
[1609801702816,3.07162608,31238.0,31236.0,0.13632608]
[1609801703014,0.13018187,31249.0,31236.0,0.13632608]
[1609801703015,0.1261,31249.0,31236.0,0.13632608]
[1609801703213,0.00408235,31250.0,31236.0,5.03292608]
[1609801704317,0.00408235,31250.0,31231.0,0.13389]
[1609801704318,0.00408235,31250.0,31240.0,0.13632608]
[1609801704718,0.00408235,31250.0,31244.0,4.2217]
[1609801705119,0.0139963,31250.0,31244.0,4.2217]
[1609801705420,0.0139963,31250.0,31240.0,0.13632608]
[1609801705819,5.2422263,31250.0,31240.0,0.13632608]
[1609801706119,5.22823,31250.0,31240.0,0.13632608]
[1609801706319,0.13632608,31242.0,31240.0,0.13632608]
[1609801708626,0.13632608,31242.0,31240.0,0.74722608]
[1609801709728,0.13632608,31242.0,31240.0,0.13632608]
[1609801709929,0.13632608,31242.0,31241.0,4.593]
[1609801710530,0.13632608,31242.0,31240.0,0.13632608]
[1609801714335,0.13153,31250.0,31240.0,0.13632608]
[1609801714635,0.13632608,31248.0,31245.0,0.13632608]
[1609801714835,0.13632608,31248.0,31247.0,4.1818]
[1609801715235,0.12839618,31252.0,31247.0,4.1818]
[1609801716438,0.12839618,31252.0,31251.0,0.13632608]
[1609801716636,0.12839618,31252.0,31251.0,0.78632608]
[1609801717738,0.12839618,31252.0,31251.0,0.65]
[1609801718638,0.1144,31252.0,31251.0,0.65]
[1609801719737,0.13632608,31254.0,31251.0,0.65]
[1609801720540,0.01399502,31257.0,31238.0,0.13909]
[1609801720841,0.01399502,31257.0,31236.0,2.13812757]
[1609801721041,0.01399502,31257.0,31249.0,0.13632608]
[1609801722946,0.13632608,31250.0,31249.0,0.13632608]
[1609801735557,0.13632608,31250.0,31249.0,4.78372608]
[1609801735760,0.13632608,31250.0,31249.0,0.13632608]
[1609801738664,0.13632608,31250.0,31249.0,3.86832608]
[1609801738866,0.00408206,31257.0,31249.0,3.86832608]
[1609801739167,0.13632608,31256.0,31255.0,0.13632608]
[1609801739668,0.13632608,31256.0,31255.0,5.40042608]
[1609801740568,0.13632608,31256.0,31255.0,0.13632608]
[1609801746073,4.8037,31259.0,31255.0,0.13632608]
[1609801746476,4.8037,31259.0,31248.0,4.1333]
[1609801747273,4.8037,31259.0,31258.0,0.13632608]
[1609801747477,0.13632608,31263.0,31258.0,0.13632608]
[1609801748376,0.13632608,31263.0,31262.0,4.0792]
[1609801749179,0.13632608,31263.0,31262.0,4.21552608]
[1609801750579,0.13632608,31263.0,31262.0,0.13632608]
[1609801754492,0.13632608,31263.0,31262.0,3.97662608]
[1609801755585,0.13632608,31263.0,31262.0,0.13632608]
[1609801759090,0.13632608,31263.0,31262.0,5.22052608]
[1609801760692,0.13632608,31263.0,31262.0,0.13632608]
[1609801767804,0.61645482,31263.0,31262.0,0.13632608]
[1609801772507,0.48012874,31263.0,31255.0,4.4243]
[1609801773508,0.61645482,31263.0,31262.0,0.13632608]
[1609801773709,0.61645482,31263.0,31262.0,5.29922608]
[1609801775713,0.61645482,31263.0,31262.0,0.13632608]
[1609801775912,0.48012874,31263.0,31254.0,0.15002]
[1609801776113,0.48012874,31263.0,31256.0,3.5992]
[1609801777613,0.61645482,31263.0,31262.0,0.13632608]
[1609801782422,0.61645482,31263.0,31261.0,5.0675]
[1609801782925,0.13632608,31263.0,31261.0,5.0675]
[1609801785822,0.48016902,31261.0,31257.0,0.13632608]
[1609801787626,0.13632608,31258.0,31257.0,0.13632608]
[1609801788025,0.64902608,31258.0,31252.0,0.14316]
[1609801788224,4.8839,31254.0,31246.0,2.13457967]
[1609801789427,4.8839,31254.0,31243.0,4.5698]
[1609801789625,5.1284,31246.0,31235.0,2.1359324]
[1609801789826,5.23918,31246.0,31234.0,5.3504]
[1609801790226,0.13632608,31235.0,31234.0,5.3504]
[1609801790425,0.14507,31237.0,31231.0,2.136582]
[1609801792026,0.13632608,31232.0,31231.0,2.136582]
[1609801792830,0.14507,31237.0,31231.0,2.136582]
[1609801793030,0.14507,31237.0,31225.0,2.13801994]
[1609801793231,3.9658,31227.0,31225.0,2.13801994]
[1609801793429,4.07008,31227.0,31225.0,2.13801994]
[1609801793631,4.07008,31227.0,31206.0,2.13508451]
[1609801793830,0.10428,31227.0,31206.0,2.13508451]
[1609801794029,0.48078464,31221.0,31213.0,4.9166]
[1609801794930,0.10428,31227.0,31213.0,4.9166]
[1609801795332,0.10428,31227.0,31219.0,0.13632608]
[1609801795730,0.10428,31227.0,31225.0,4.4779]
[1609801795930,0.10428,31227.0,31219.0,0.13632608]
[1609801796332,3.7601,31224.0,31219.0,0.13632608]
[1609801796731,3.7601,31224.0,31210.0,4.1924]
[1609801797232,0.13632608,31212.0,31210.0,4.32872608]
[1609801797432,0.13632608,31212.0,31210.0,0.13632608]
[1609801798234,0.13632608,31212.0,31206.0,2.1260945]
[1609801798437,0.13632608,31212.0,31203.0,3.87606]
[1609801799337,0.10311,31219.0,31211.0,0.13632608]
[1609801799938,0.10311,31219.0,31208.0,4.8914]
[1609801800138,0.10311,31219.0,31203.0,0.10966]
[1609801800341,0.10311,31219.0,31212.0,5.279]
[1609801800539,0.10311,31219.0,31203.0,2.12101974]
[1609801800739,0.10311,31219.0,31210.0,3.7258]
[1609801801240,0.10311,31219.0,31218.0,0.13632608]
[1609801802441,0.13632608,31221.0,31218.0,0.13632608]
[1609801803641,0.13632608,31221.0,31218.0,5.42702608]
[1609801804041,0.10428,31227.0,31218.0,5.42702608]
[1609801804241,0.12465544,31246.0,31218.0,0.13632608]
[1609801804443,4.97185544,31246.0,31224.0,4.116]
[1609801804642,0.12465544,31246.0,31218.0,0.13632608]
[1609801804843,0.00404659,31245.0,31231.0,3.9212]
[1609801806144,0.11078,31246.0,31213.0,0.10536]
[1609801806343,0.0040424,31251.0,31213.0,0.10536]
[1609801806542,3.7267,31246.0,31217.0,4.0697]
[1609801806842,3.87167,31246.0,31217.0,4.0697]
[1609801807443,0.13632608,31234.0,31232.0,0.13632608]
[1609801807842,0.23998608,31234.0,31232.0,0.13632608]
[1609801810953,0.10366,31234.0,31232.0,0.13632608]
[1609801813257,3.8549,31239.0,31232.0,0.13632608]
[1609801813455,3.8549,31239.0,31238.0,0.13632608]
[1609801813655,0.07868641,32760.0,31238.0,0.13632608]
[1609801813855,0.02924922,31258.0,31238.0,5.15662608]
[1609801814757,0.00981489,31258.0,31238.0,5.15662608]
[1609801815458,0.00981489,31258.0,31254.0,0.13632608]
[1609801815659,0.2727,31263.0,31254.0,0.13632608]
[1609801815862,0.2727,31263.0,31255.0,4.4433]
[1609801816159,0.2727,31263.0,31254.0,0.13632608]
[1609801816359,0.40153,31263.0,31254.0,0.13632608]
[1609801816561,5.0663,31260.0,31245.0,3.89955268]
[1609801817459,5.0663,31260.0,31250.0,0.13632608]
[1609801818564,5.0663,31260.0,31245.0,3.89955268]
[1609801819463,0.13632608,31246.0,31245.0,3.89955268]
[1609801821564,0.13632608,31252.0,31245.0,3.89955268]
[1609801821764,0.13632608,31252.0,31244.0,0.13632608]
[1609801821964,0.13632608,31252.0,31249.0,3.7121]
[1609801822163,0.13632608,31252.0,31244.0,0.13632608]
[1609801822364,0.13632608,31252.0,31251.0,4.1306]
[1609801827766,0.13632608,31252.0,31249.0,0.13632608]
[1609801827967,0.15902,31253.0,31242.0,4.8848]
[1609801828166,0.40153,31263.0,31238.0,0.11803]
[1609801828367,3.9133,31247.0,31233.0,4.5477]
[1609801829668,0.13632608,31234.0,31233.0,4.5477]
[1609801829870,0.13632608,31234.0,31231.0,2.12062499]
[1609801830270,0.13632608,31234.0,31227.0,0.13632608]
[1609801830669,0.48047663,31241.0,31227.0,0.13632608]
[1609801831570,0.48047663,31241.0,31225.0,3.9875]
[1609801831571,0.13632608,31235.0,31234.0,0.13632608]
[1609801831773,4.20032608,31235.0,31222.0,4.1536]
[1609801833175,4.064,31235.0,31222.0,4.1536]
[1609801833574,0.13632608,31232.0,31229.0,0.13632608]
[1609801836578,0.48046124,31242.0,31229.0,0.13632608]
[1609801836778,5.22844,31243.0,31229.0,0.13632608]
[1609801837680,0.13632608,31230.0,31229.0,0.13632608]
[1609801843087,5.2904,31235.0,31229.0,0.13632608]
[1609801843688,5.2904,31235.0,31234.0,0.13632608]
[1609801843888,0.6168335,31239.0,31234.0,0.13632608]
[1609801844992,0.13632608,31239.0,31234.0,0.13632608]
[1609801845294,0.13632608,31239.0,31236.0,3.6777]
[1609801845493,0.13632608,31239.0,31234.0,0.13632608]
[1609801845694,0.13632608,31239.0,31238.0,0.13632608]
[1609801846096,0.13632608,31239.0,31238.0,4.40032608]
[1609801847095,0.13632608,31239.0,31238.0,0.13632608]